[Event "Early-Titled-Tuesday-Blitz-January-30-2024"]
[Site "Chess.com"]
[Date "2024.01.30"]
[Round "4"]
[White "ATM622"]
[Black "AnaKuchava"]
[Result "1/2-1/2"]
[WhiteElo "2461"]
[BlackElo "2209"]
[TimeControl "180+1"]
[EndTime "8:42:02 PST"]
[Termination "Game drawn by repetition"]

1. d4 {[%clk 0:03:00.9]} 1... d5 {[%clk 0:02:54.1]} 2. c4 {[%clk 0:03:00.7]}
2... e6 {[%clk 0:02:46.7]} 3. Nf3 {[%clk 0:03:00.6]} 3... Nf6 {[%clk 0:02:45.9]}
4. Nbd2 {[%clk 0:02:59.7]} 4... Be7 {[%clk 0:02:42.7]} 5. g3 {[%clk 0:02:59.5]}
5... O-O {[%clk 0:02:35.2]} 6. Bg2 {[%clk 0:02:59.3]} 6... c5 {[%clk 0:02:32]}
7. cxd5 {[%clk 0:02:55.9]} 7... cxd4 {[%clk 0:02:24.8]} 8. O-O {[%clk
0:02:52.5]} 8... Nxd5 {[%clk 0:02:22.3]} 9. Nxd4 {[%clk 0:02:51.6]} 9... Bd7
{[%clk 0:02:19]} 10. Nc4 {[%clk 0:02:48.9]} 10... Nc6 {[%clk 0:02:15.9]} 11.
Nxc6 {[%clk 0:02:46.9]} 11... Bxc6 {[%clk 0:02:16.8]} 12. Ne5 {[%clk 0:02:46.2]}
12... Rc8 {[%clk 0:02:09.5]} 13. Qb3 {[%clk 0:02:43.3]} 13... Qc7 {[%clk
0:01:20.9]} 14. Nxc6 {[%clk 0:02:37.7]} 14... Qxc6 {[%clk 0:01:19.7]} 15. e4
{[%clk 0:02:30.5]} 15... Nb6 {[%clk 0:01:13.4]} 16. Be3 {[%clk 0:02:24.8]} 16...
Qc2 {[%clk 0:00:53.1]} 17. Rac1 {[%clk 0:02:17.3]} 17... Qxb3 {[%clk 0:00:50.9]}
18. axb3 {[%clk 0:02:18.2]} 18... Bb4 {[%clk 0:00:41.7]} 19. Ra1 {[%clk
0:02:14.5]} 19... Ra8 {[%clk 0:00:25.2]} 20. Rfc1 {[%clk 0:02:08]} 20... Rfc8
{[%clk 0:00:23.8]} 21. Bxb6 {[%clk 0:02:05.2]} 21... Rxc1+ {[%clk 0:00:19.7]}
22. Rxc1 {[%clk 0:02:05.3]} 22... axb6 {[%clk 0:00:19.7]} 23. e5 {[%clk
0:02:05.9]} 23... g6 {[%clk 0:00:12.9]} 24. Bxb7 {[%clk 0:02:04.2]} 24... Ra2
{[%clk 0:00:11.8]} 25. Rc2 {[%clk 0:01:53.1]} 25... Bc5 {[%clk 0:00:06.7]} 26.
Kg2 {[%clk 0:01:44.9]} 26... Bd4 {[%clk 0:00:07]} 27. f4 {[%clk 0:01:41.1]}
27... Rxb2 {[%clk 0:00:06.5]} 28. Rxb2 {[%clk 0:01:41.1]} 28... Bxb2 {[%clk
0:00:07.4]} 29. Kf3 {[%clk 0:01:38.2]} 29... Bd4 {[%clk 0:00:07.1]} 30. Ke4
{[%clk 0:01:37.2]} 30... Bg1 {[%clk 0:00:07.2]} 31. h3 {[%clk 0:01:36.4]} 31...
h5 {[%clk 0:00:07.5]} 32. Bc8 {[%clk 0:01:34]} 32... Kf8 {[%clk 0:00:07.3]} 33.
Kd3 {[%clk 0:01:32.8]} 33... Ke7 {[%clk 0:00:07.5]} 34. Kc4 {[%clk 0:01:32.7]}
34... Kd8 {[%clk 0:00:07.9]} 35. Bb7 {[%clk 0:01:31.5]} 35... Ke7 {[%clk
0:00:08]} 36. Kb5 {[%clk 0:01:14.6]} 36... Bf2 {[%clk 0:00:06.8]} 37. g4 {[%clk
0:01:10.7]} 37... hxg4 {[%clk 0:00:06.5]} 38. hxg4 {[%clk 0:01:10.3]} 38... Kd8
{[%clk 0:00:06.6]} 39. Bc6 {[%clk 0:01:07.3]} 39... Be3 {[%clk 0:00:05.5]} 40.
f5 {[%clk 0:00:54.1]} 40... gxf5 {[%clk 0:00:06.4]} 41. gxf5 {[%clk 0:00:54]}
41... exf5 {[%clk 0:00:07.3]} 42. Kc4 {[%clk 0:00:49.1]} 42... f4 {[%clk
0:00:07.4]} 43. Bf3 {[%clk 0:00:45.4]} 43... Ke7 {[%clk 0:00:07.7]} 44. Kd5
{[%clk 0:00:45.5]} 44... Bf2 {[%clk 0:00:06.3]} 45. Ke4 {[%clk 0:00:42.8]} 45...
Be3 {[%clk 0:00:07.2]} 46. Kd5 {[%clk 0:00:42.7]} 46... Kd7 {[%clk 0:00:07.4]}
47. Bg4+ {[%clk 0:00:42.2]} 47... Ke7 {[%clk 0:00:08.3]} 48. b4 {[%clk
0:00:41.6]} 48... Kd8 {[%clk 0:00:08.5]} 49. b5 {[%clk 0:00:39.6]} 49... Ke7
{[%clk 0:00:08.3]} 50. Bf3 {[%clk 0:00:37.9]} 50... Bf2 {[%clk 0:00:08.5]} 51.
Bg4 {[%clk 0:00:35.5]} 51... Be3 {[%clk 0:00:09.4]} 52. Ke4 {[%clk 0:00:35.7]}
52... Kd8 {[%clk 0:00:07.1]} 53. Bd1 {[%clk 0:00:32.5]} 53... Ke7 {[%clk
0:00:08]} 54. Bb3 {[%clk 0:00:31]} 54... Kf8 {[%clk 0:00:06.4]} 55. Kf3 {[%clk
0:00:26.7]} 55... Ke7 {[%clk 0:00:07.3]} 56. Ke4 {[%clk 0:00:26.8]} 56... Kf8
{[%clk 0:00:07.2]} 57. Bd1 {[%clk 0:00:27.3]} 57... Ke7 {[%clk 0:00:08.1]} 58.
Bg4 {[%clk 0:00:25.8]} 58... Kf8 {[%clk 0:00:08.3]} 59. e6 {[%clk 0:00:17.9]}
59... Ke7 {[%clk 0:00:09.2]} 60. exf7 {[%clk 0:00:17.6]} 60... Kxf7 {[%clk
0:00:10.1]} 61. Kf3 {[%clk 0:00:15.2]} 61... Ke7 {[%clk 0:00:10.4]} 62. Bh3
{[%clk 0:00:15.1]} 62... Kd6 {[%clk 0:00:11.3]} 63. Bg4 {[%clk 0:00:15.3]} 63...
Kc5 {[%clk 0:00:12.2]} 64. Bd7 {[%clk 0:00:15.6]} 64... Kd4 {[%clk 0:00:11.6]}
65. Be8 {[%clk 0:00:16.1]} 65... Kc5 {[%clk 0:00:11.6]} 66. Bd7 {[%clk
0:00:16.2]} 66... Kd4 {[%clk 0:00:12]} 67. Be8 {[%clk 0:00:16.5]} 67... Kc5
{[%clk 0:00:12.9]} 68. Bd7 {[%clk 0:00:16.8]} 1/2-1/2

[Event "Early-Titled-Tuesday-Blitz-January-30-2024"]
[Site "Chess.com"]
[Date "2024.01.30"]
[Round "4"]
[White "Iuckyducky"]
[Black "Better_Chess_Faster"]
[Result "1-0"]
[WhiteElo "2364"]
[BlackElo "2130"]
[TimeControl "180+1"]
[EndTime "8:42:03 PST"]
[Termination "Iuckyducky won by checkmate"]

1. e4 {[%clk 0:02:07.4]} 1... Nf6 {[%clk 0:02:58.8]} 2. e5 {[%clk 0:02:07.3]}
2... Nd5 {[%clk 0:02:59.3]} 3. d4 {[%clk 0:02:07.2]} 3... d6 {[%clk 0:02:59.9]}
4. f4 {[%clk 0:02:06.6]} 4... dxe5 {[%clk 0:02:58.9]} 5. fxe5 {[%clk 0:02:06.5]}
5... c5 {[%clk 0:02:59]} 6. c3 {[%clk 0:02:04.7]} 6... Nc6 {[%clk 0:02:56.8]} 7.
Nf3 {[%clk 0:02:03.7]} 7... Bg4 {[%clk 0:02:56.2]} 8. Be2 {[%clk 0:02:02.5]}
8... e6 {[%clk 0:02:55.8]} 9. O-O {[%clk 0:01:58.8]} 9... Be7 {[%clk 0:02:55.1]}
10. Kh1 {[%clk 0:01:55.6]} 10... O-O {[%clk 0:02:54.3]} 11. h3 {[%clk 0:01:54]}
11... Bxf3 {[%clk 0:02:53.7]} 12. Bxf3 {[%clk 0:01:49.4]} 12... cxd4 {[%clk
0:02:53.6]} 13. cxd4 {[%clk 0:01:49.3]} 13... Rc8 {[%clk 0:02:49.8]} 14. Nc3
{[%clk 0:01:47.8]} 14... Nb6 {[%clk 0:02:43.2]} 15. Be3 {[%clk 0:01:46.4]} 15...
Nc4 {[%clk 0:02:41]} 16. Bg1 {[%clk 0:01:39.5]} 16... Nxb2 {[%clk 0:02:40.4]}
17. Qb3 {[%clk 0:01:38.1]} 17... Qb6 {[%clk 0:02:37.3]} 18. Qc2 {[%clk 0:00:38]}
18... Nxd4 {[%clk 0:02:16.7]} 19. Qe4 {[%clk 0:00:37.5]} 19... Rfd8 {[%clk
0:02:08.3]} 20. Ne2 {[%clk 0:00:32.9]} 20... Rc4 {[%clk 0:02:02.2]} 21. Nxd4
{[%clk 0:00:25.4]} 21... Rcxd4 {[%clk 0:02:02.1]} 22. Qe2 {[%clk 0:00:18.8]}
22... Nd3 {[%clk 0:01:39.1]} 23. Rab1 {[%clk 0:00:12.3]} 23... Qa5 {[%clk
0:01:19]} 24. Bxd4 {[%clk 0:00:12.4]} 24... Rxd4 {[%clk 0:01:18.3]} 25. Rxb7
{[%clk 0:00:12.4]} 25... Bf8 {[%clk 0:01:02.4]} 26. Be4 {[%clk 0:00:11.5]} 26...
g6 {[%clk 0:01:01.6]} 27. Bxd3 {[%clk 0:00:11.2]} 27... Qd5 {[%clk 0:01:00.5]}
28. Rbxf7 {[%clk 0:00:09.7]} 28... Bh6 {[%clk 0:00:50.5]} 29. Bc2 {[%clk
0:00:06.8]} 29... Rd2 {[%clk 0:00:50.3]} 30. Bb3 {[%clk 0:00:03.1]} 30... Rxe2
{[%clk 0:00:41.7]} 31. Bxd5 {[%clk 0:00:03.3]} 31... exd5 {[%clk 0:00:42.5]} 32.
Rxa7 {[%clk 0:00:02.9]} 32... Rxe5 {[%clk 0:00:38.2]} 33. a4 {[%clk 0:00:03.2]}
33... Be3 {[%clk 0:00:31.2]} 34. Ra8+ {[%clk 0:00:02.9]} 34... Kg7 {[%clk
0:00:27.6]} 35. a5 {[%clk 0:00:03.8]} 35... d4 {[%clk 0:00:26.4]} 36. a6 {[%clk
0:00:04.2]} 36... Ra5 {[%clk 0:00:25.2]} 37. a7 {[%clk 0:00:04.5]} 37... d3
{[%clk 0:00:24.4]} 38. Re1 {[%clk 0:00:03.7]} 38... d2 {[%clk 0:00:18.5]} 39.
Rd1 {[%clk 0:00:02.7]} 39... Rxa7 {[%clk 0:00:15.5]} 40. Rxa7+ {[%clk
0:00:02.5]} 40... Bxa7 {[%clk 0:00:15.1]} 41. Rxd2 {[%clk 0:00:03.4]} 41... Be3
{[%clk 0:00:15]} 42. Ra2 {[%clk 0:00:04.3]} 42... Kf6 {[%clk 0:00:13.3]} 43. Kh2
{[%clk 0:00:05.2]} 43... h5 {[%clk 0:00:12.8]} 44. Kg3 {[%clk 0:00:06.1]} 44...
Bg5 {[%clk 0:00:11.8]} 45. Kf3 {[%clk 0:00:07]} 45... Bh4 {[%clk 0:00:11.8]} 46.
Ra6+ {[%clk 0:00:07.5]} 46... Kf7 {[%clk 0:00:10.8]} 47. Ra7+ {[%clk 0:00:07.4]}
47... Be7 {[%clk 0:00:10.7]} 48. Kf4 {[%clk 0:00:06.6]} 48... Kf6 {[%clk
0:00:10.6]} 49. Ra6+ {[%clk 0:00:06.7]} 49... Kf7 {[%clk 0:00:10]} 50. Ke5
{[%clk 0:00:07.2]} 50... Bd8 {[%clk 0:00:09.4]} 51. Ra7+ {[%clk 0:00:07.5]}
51... Kg8 {[%clk 0:00:09]} 52. Ke6 {[%clk 0:00:07.8]} 52... Bg5 {[%clk 0:00:09]}
53. Rb7 {[%clk 0:00:06.2]} 53... Kh8 {[%clk 0:00:08]} 54. Kf7 {[%clk 0:00:05.9]}
54... Bf4 {[%clk 0:00:07.2]} 55. Kxg6 {[%clk 0:00:05.9]} 55... h4 {[%clk
0:00:07.1]} 56. Kh5 {[%clk 0:00:06.1]} 56... Bg3 {[%clk 0:00:07.8]} 57. Rb3
{[%clk 0:00:05.1]} 57... Kg8 {[%clk 0:00:07.9]} 58. Kg4 {[%clk 0:00:06]} 58...
Kg7 {[%clk 0:00:07.9]} 59. Rxg3 {[%clk 0:00:06.5]} 59... Kg6 {[%clk 0:00:08.8]}
60. Rf3 {[%clk 0:00:06.3]} 60... Kh6 {[%clk 0:00:07.9]} 61. Kxh4 {[%clk
0:00:07.2]} 61... Kg6 {[%clk 0:00:07.8]} 62. g4 {[%clk 0:00:07.7]} 62... Kg7
{[%clk 0:00:07.6]} 63. g5 {[%clk 0:00:08.2]} 63... Kg6 {[%clk 0:00:08.4]} 64.
Kg4 {[%clk 0:00:08.5]} 64... Kg7 {[%clk 0:00:08.7]} 65. Kh5 {[%clk 0:00:08.9]}
65... Kh7 {[%clk 0:00:07.7]} 66. Rf7+ {[%clk 0:00:09.3]} 66... Kg8 {[%clk
0:00:07.2]} 67. Kg6 {[%clk 0:00:09.8]} 67... Kh8 {[%clk 0:00:07.1]} 68. Rf8#
{[%clk 0:00:10.7]} 1-0

[Event "Early-Titled-Tuesday-Blitz-January-30-2024"]
[Site "Chess.com"]
[Date "2024.01.30"]
[Round "4"]
[White "Dinosaurio_1975"]
[Black "wild3000"]
[Result "1-0"]
[WhiteElo "2598"]
[BlackElo "2399"]
[TimeControl "180+1"]
[EndTime "8:42:05 PST"]
[Termination "Dinosaurio_1975 won by checkmate"]

1. e4 {[%clk 0:03:00.9]} 1... a6 {[%clk 0:02:22.9]} 2. d4 {[%clk 0:02:59.2]}
2... e6 {[%clk 0:02:22.6]} 3. c4 {[%clk 0:02:55.7]} 3... d6 {[%clk 0:02:21.5]}
4. Nc3 {[%clk 0:02:55.3]} 4... Nf6 {[%clk 0:02:21.2]} 5. f4 {[%clk 0:02:55.2]}
5... Be7 {[%clk 0:02:21]} 6. e5 {[%clk 0:02:55.4]} 6... Nfd7 {[%clk 0:02:16.9]}
7. Nf3 {[%clk 0:02:55.9]} 7... O-O {[%clk 0:02:13.5]} 8. Bd3 {[%clk 0:02:55.4]}
8... c5 {[%clk 0:02:10.5]} 9. d5 {[%clk 0:02:53.2]} 9... b5 {[%clk 0:02:03.2]}
10. dxe6 {[%clk 0:02:45.7]} 10... fxe6 {[%clk 0:02:02.9]} 11. exd6 {[%clk
0:02:46.2]} 11... Bf6 {[%clk 0:01:56]} 12. O-O {[%clk 0:02:41.4]} 12... bxc4
{[%clk 0:01:51.2]} 13. Be4 {[%clk 0:02:21.7]} 13... Ra7 {[%clk 0:01:49.1]} 14.
Qe2 {[%clk 0:01:59.1]} 14... Nb6 {[%clk 0:01:48.4]} 15. Rd1 {[%clk 0:01:55]}
15... Bd7 {[%clk 0:01:44.6]} 16. Be3 {[%clk 0:01:37.3]} 16... Qc8 {[%clk
0:01:44.1]} 17. Ng5 {[%clk 0:01:33.8]} 17... h6 {[%clk 0:01:25.2]} 18. Nh7
{[%clk 0:01:25.3]} 18... Bxc3 {[%clk 0:01:24.6]} 19. Nxf8 {[%clk 0:01:22]} 19...
Bc6 {[%clk 0:01:14.4]} 20. d7 {[%clk 0:01:01.4]} 20... N8xd7 {[%clk 0:00:54]}
21. Nxd7 {[%clk 0:00:59.6]} 21... Bxe4 {[%clk 0:00:54]} 22. Nxb6 {[%clk
0:00:59.1]} 22... Qc6 {[%clk 0:00:50.3]} 23. bxc3 {[%clk 0:00:58.6]} 23... Qxb6
{[%clk 0:00:49.9]} 24. h3 {[%clk 0:00:50]} 24... Rf7 {[%clk 0:00:47.6]} 25. Kh2
{[%clk 0:00:49.7]} 25... Qc6 {[%clk 0:00:46.6]} 26. Rd8+ {[%clk 0:00:47.1]}
26... Kh7 {[%clk 0:00:46.5]} 27. Rad1 {[%clk 0:00:47.6]} 27... Rf6 {[%clk
0:00:46.5]} 28. R1d6 {[%clk 0:00:36.8]} 28... Qb7 {[%clk 0:00:45]} 29. f5 {[%clk
0:00:32.9]} 29... Bxf5 {[%clk 0:00:42.6]} 30. R6d7 {[%clk 0:00:20.9]} 30... Qc6
{[%clk 0:00:41.8]} 31. Bf4 {[%clk 0:00:19.8]} 31... Rg6 {[%clk 0:00:40]} 32. Be5
{[%clk 0:00:16.8]} 32... Be4 {[%clk 0:00:37.2]} 33. Rxg7+ {[%clk 0:00:16.4]}
33... Rxg7 {[%clk 0:00:37]} 34. Bxg7 {[%clk 0:00:17.3]} 34... Kxg7 {[%clk
0:00:37.2]} 35. Qg4+ {[%clk 0:00:17.8]} 35... Bg6 {[%clk 0:00:30.5]} 36. Qf4
{[%clk 0:00:17.9]} 36... Bf5 {[%clk 0:00:26.9]} 37. Qe5+ {[%clk 0:00:17.1]}
37... Kf7 {[%clk 0:00:26.9]} 38. Qh8 {[%clk 0:00:16.6]} 38... Qc7+ {[%clk
0:00:16.1]} 39. Kh1 {[%clk 0:00:15.9]} 39... Kg6 {[%clk 0:00:15.7]} 40. Rg8+
{[%clk 0:00:14.6]} 40... Kh5 {[%clk 0:00:11.1]} 41. g4+ {[%clk 0:00:13.8]} 41...
Kh4 {[%clk 0:00:10.1]} 42. Qxh6+ {[%clk 0:00:12.7]} 42... Kg3 {[%clk 0:00:09.9]}
43. gxf5+ {[%clk 0:00:13.1]} 43... Kf3 {[%clk 0:00:10.1]} 44. Qh5+ {[%clk
0:00:13.3]} 44... Ke3 {[%clk 0:00:09.2]} 45. Qg5+ {[%clk 0:00:13.5]} 45... Kd3
{[%clk 0:00:09.1]} 46. Qg3+ {[%clk 0:00:13.4]} 46... Kc2 {[%clk 0:00:08.8]} 47.
fxe6 {[%clk 0:00:13.6]} 47... Qc6+ {[%clk 0:00:08.4]} 48. Qg2+ {[%clk
0:00:13.9]} 48... Qxg2+ {[%clk 0:00:06.8]} 49. Rxg2+ {[%clk 0:00:14.8]} 49...
Kxc3 {[%clk 0:00:05.9]} 50. e7 {[%clk 0:00:15.7]} 50... Kb4 {[%clk 0:00:06.2]}
51. e8=Q {[%clk 0:00:16.5]} 51... a5 {[%clk 0:00:06.6]} 52. Rb2+ {[%clk
0:00:12.9]} 52... Kc3 {[%clk 0:00:06.5]} 53. Qe2 {[%clk 0:00:12.7]} 53... Kd4
{[%clk 0:00:05.6]} 54. Rd2+ {[%clk 0:00:12]} 54... Kc3 {[%clk 0:00:01.6]} 55.
Rd1 {[%clk 0:00:09.1]} 55... Kb4 {[%clk 0:00:02.5]} 56. Qb2+ {[%clk 0:00:08.4]}
56... Ka4 {[%clk 0:00:03.4]} 57. Qc2+ {[%clk 0:00:08.3]} 57... Kb4 {[%clk
0:00:03.8]} 58. Rb1+ {[%clk 0:00:08.7]} 58... Ka3 {[%clk 0:00:04.4]} 59. Qc3+
{[%clk 0:00:09]} 59... Ka4 {[%clk 0:00:04.9]} 60. Qxc4+ {[%clk 0:00:09]} 60...
Ka3 {[%clk 0:00:05.2]} 61. Qb3# {[%clk 0:00:09.9]} 1-0

[Event "Early-Titled-Tuesday-Blitz-January-30-2024"]
[Site "Chess.com"]
[Date "2024.01.30"]
[Round "4"]
[White "Alen_Yeremyann"]
[Black "Pelopidass"]
[Result "1/2-1/2"]
[WhiteElo "2739"]
[BlackElo "2561"]
[TimeControl "180+1"]
[EndTime "8:42:06 PST"]
[Termination "Game drawn by repetition"]

1. d4 {[%clk 0:03:00.9]} 1... Nf6 {[%clk 0:02:58.2]} 2. c4 {[%clk 0:03:00.9]}
2... e6 {[%clk 0:02:57.3]} 3. g3 {[%clk 0:03:01.4]} 3... c5 {[%clk 0:02:54.3]}
4. d5 {[%clk 0:03:01.2]} 4... exd5 {[%clk 0:02:54]} 5. cxd5 {[%clk 0:03:02.1]}
5... d6 {[%clk 0:02:52.6]} 6. Bg2 {[%clk 0:03:02.8]} 6... g6 {[%clk 0:02:51.8]}
7. Nf3 {[%clk 0:03:03.4]} 7... Bg7 {[%clk 0:02:51.9]} 8. O-O {[%clk 0:03:04.3]}
8... O-O {[%clk 0:02:52.1]} 9. Nc3 {[%clk 0:03:05.1]} 9... a6 {[%clk 0:02:51.2]}
10. a4 {[%clk 0:03:05]} 10... Re8 {[%clk 0:02:50.2]} 11. Nd2 {[%clk 0:03:05.6]}
11... Nbd7 {[%clk 0:02:42.4]} 12. Nc4 {[%clk 0:03:06.2]} 12... Ne5 {[%clk
0:02:41.9]} 13. Nxe5 {[%clk 0:03:05.8]} 13... Rxe5 {[%clk 0:02:42.8]} 14. Bf4
{[%clk 0:03:05.9]} 14... Re8 {[%clk 0:02:42.9]} 15. Re1 {[%clk 0:03:04.1]} 15...
Nh5 {[%clk 0:02:31.7]} 16. Bd2 {[%clk 0:03:02.8]} 16... f5 {[%clk 0:02:29.3]}
17. e4 {[%clk 0:03:02]} 17... Nf6 {[%clk 0:02:20.4]} 18. Bg5 {[%clk 0:03:00.9]}
18... h6 {[%clk 0:02:16.9]} 19. Bd2 {[%clk 0:02:54.9]} 19... fxe4 {[%clk
0:01:42.5]} 20. Nxe4 {[%clk 0:02:55.2]} 20... Bf5 {[%clk 0:01:41.9]} 21. Nxf6+
{[%clk 0:02:51.7]} 21... Qxf6 {[%clk 0:01:42.1]} 22. Bc3 {[%clk 0:02:52]} 22...
Qf7 {[%clk 0:01:38.1]} 23. Qb3 {[%clk 0:02:51.3]} 23... g5 {[%clk 0:01:15.4]}
24. a5 {[%clk 0:02:50.7]} 24... Rac8 {[%clk 0:01:01.9]} 25. Qc4 {[%clk
0:02:37.9]} 25... Bxc3 {[%clk 0:00:50.1]} 26. bxc3 {[%clk 0:02:35.5]} 26...
Rxe1+ {[%clk 0:00:50.1]} 27. Rxe1 {[%clk 0:02:35.4]} 27... Re8 {[%clk
0:00:50.6]} 28. Rc1 {[%clk 0:02:30.4]} 28... Qe7 {[%clk 0:00:38.8]} 29. h3
{[%clk 0:02:23.6]} 29... Qe2 {[%clk 0:00:34.9]} 30. Qb3 {[%clk 0:02:15]} 30...
Qd2 {[%clk 0:00:23.9]} 31. Rf1 {[%clk 0:01:56.6]} 31... Bd3 {[%clk 0:00:20.7]}
32. Qxb7 {[%clk 0:01:34.8]} 32... Bxf1 {[%clk 0:00:19.7]} 33. Bxf1 {[%clk
0:01:35.7]} 33... Qxc3 {[%clk 0:00:15.4]} 34. Qxa6 {[%clk 0:01:35.2]} 34... Re1
{[%clk 0:00:11]} 35. Qc8+ {[%clk 0:01:29.2]} 35... Kh7 {[%clk 0:00:11.1]} 36.
Qd7+ {[%clk 0:01:27.9]} 36... Qg7 {[%clk 0:00:10]} 37. Qxd6 {[%clk 0:01:23.8]}
37... Qa1 {[%clk 0:00:10.4]} 38. Qa6 {[%clk 0:01:23.5]} 38... Qd4 {[%clk
0:00:07.7]} 39. Kg2 {[%clk 0:01:15.4]} 39... Qe4+ {[%clk 0:00:08]} 40. Kh2
{[%clk 0:01:15.7]} 40... Rd1 {[%clk 0:00:06.2]} 41. Bg2 {[%clk 0:01:01.4]} 41...
Qe1 {[%clk 0:00:05.6]} 42. Qb7+ {[%clk 0:00:51.5]} 42... Kh8 {[%clk 0:00:05.7]}
43. Qc8+ {[%clk 0:00:50.2]} 43... Kg7 {[%clk 0:00:06.1]} 44. Qd7+ {[%clk
0:00:50.4]} 44... Kh8 {[%clk 0:00:06.6]} 45. Qc8+ {[%clk 0:00:40]} 45... Kg7
{[%clk 0:00:07]} 46. h4 {[%clk 0:00:28.6]} 46... Qxf2 {[%clk 0:00:06.3]} 47.
Qd7+ {[%clk 0:00:20.9]} 47... Qf7 {[%clk 0:00:05.6]} 48. Qg4 {[%clk 0:00:20.3]}
48... Qf6 {[%clk 0:00:04.1]} 49. Qd7+ {[%clk 0:00:16.1]} 49... Qf7 {[%clk
0:00:03]} 50. Qg4 {[%clk 0:00:16.7]} 50... Rd4 {[%clk 0:00:03.5]} 51. Qe2 {[%clk
0:00:10]} 51... gxh4 {[%clk 0:00:04.4]} 52. Qe3 {[%clk 0:00:08]} 52... hxg3+
{[%clk 0:00:03.9]} 53. Qxg3+ {[%clk 0:00:08.2]} 53... Qg6 {[%clk 0:00:04.4]} 54.
Qe5+ {[%clk 0:00:08.8]} 54... Qf6 {[%clk 0:00:04.5]} 55. Qg3+ {[%clk 0:00:09.5]}
55... Qg6 {[%clk 0:00:04]} 56. Qc7+ {[%clk 0:00:09.1]} 56... Qf7 {[%clk
0:00:03.9]} 57. Qe5+ {[%clk 0:00:09.8]} 57... Qf6 {[%clk 0:00:04.1]} 58. Qg3+
{[%clk 0:00:10]} 58... Kh8 {[%clk 0:00:04.2]} 59. Qb8+ {[%clk 0:00:09.9]} 59...
Kg7 {[%clk 0:00:04.1]} 60. Qc7+ {[%clk 0:00:10.7]} 60... Qf7 {[%clk 0:00:04.4]}
61. Qe5+ {[%clk 0:00:10.8]} 61... Qf6 {[%clk 0:00:04.9]} 1/2-1/2

[Event "Early-Titled-Tuesday-Blitz-January-30-2024"]
[Site "Chess.com"]
[Date "2024.01.30"]
[Round "4"]
[White "PetrolulSah"]
[Black "BashirliSaadat"]
[Result "1-0"]
[WhiteElo "2197"]
[BlackElo "2373"]
[TimeControl "180+1"]
[EndTime "8:42:08 PST"]
[Termination "PetrolulSah won on time"]

1. d4 {[%clk 0:03:00.9]} 1... Nf6 {[%clk 0:02:58.2]} 2. g3 {[%clk 0:03:00.4]}
2... g6 {[%clk 0:02:55.6]} 3. Bg2 {[%clk 0:03:00]} 3... Bg7 {[%clk 0:02:56]} 4.
e4 {[%clk 0:03:00.1]} 4... d6 {[%clk 0:02:55.5]} 5. Ne2 {[%clk 0:03:00.1]} 5...
O-O {[%clk 0:02:55.9]} 6. O-O {[%clk 0:03:00.1]} 6... e5 {[%clk 0:02:53.7]} 7.
h3 {[%clk 0:02:53.8]} 7... Re8 {[%clk 0:02:49.7]} 8. Nbc3 {[%clk 0:02:52.6]}
8... exd4 {[%clk 0:02:48.2]} 9. Nxd4 {[%clk 0:02:52]} 9... Nbd7 {[%clk
0:02:46.9]} 10. Bg5 {[%clk 0:02:50.6]} 10... h6 {[%clk 0:02:45.4]} 11. Be3
{[%clk 0:02:50.6]} 11... Nc5 {[%clk 0:02:44.1]} 12. f3 {[%clk 0:02:24.2]} 12...
Ne6 {[%clk 0:02:36.7]} 13. Re1 {[%clk 0:02:14.7]} 13... Bd7 {[%clk 0:02:27.9]}
14. Kh2 {[%clk 0:02:13.8]} 14... c6 {[%clk 0:02:21.6]} 15. Qd2 {[%clk
0:02:13.2]} 15... Qc7 {[%clk 0:02:16]} 16. Nxe6 {[%clk 0:02:08.8]} 16... Bxe6
{[%clk 0:01:50.1]} 17. Bxh6 {[%clk 0:02:08.5]} 17... d5 {[%clk 0:01:43.7]} 18.
Bxg7 {[%clk 0:02:01.4]} 18... Kxg7 {[%clk 0:01:44.6]} 19. f4 {[%clk 0:01:53.8]}
19... dxe4 {[%clk 0:01:42.3]} 20. Nxe4 {[%clk 0:01:51.2]} 20... Nxe4 {[%clk
0:01:41.6]} 21. Bxe4 {[%clk 0:01:50.7]} 21... Rad8 {[%clk 0:01:39.4]} 22. Qc3+
{[%clk 0:01:50.1]} 22... Kg8 {[%clk 0:01:37.5]} 23. Rad1 {[%clk 0:01:43.2]}
23... Rxd1 {[%clk 0:01:27.2]} 24. Rxd1 {[%clk 0:01:44.1]} 24... Bxh3 {[%clk
0:01:15.9]} 25. Bxg6 {[%clk 0:01:34.5]} 25... Bg4 {[%clk 0:01:11.2]} 26. Bxf7+
{[%clk 0:00:57]} 26... Qxf7 {[%clk 0:01:07.8]} 27. Re1 {[%clk 0:00:55.2]} 27...
Qh5+ {[%clk 0:01:04.2]} 28. Kg1 {[%clk 0:00:54.2]} 28... Rxe1+ {[%clk
0:00:56.4]} 29. Qxe1 {[%clk 0:00:55.1]} 29... Qc5+ {[%clk 0:00:54.3]} 30. Qf2
{[%clk 0:00:50.5]} 30... Qxf2+ {[%clk 0:00:53.3]} 31. Kxf2 {[%clk 0:00:51.4]}
31... Kf7 {[%clk 0:00:52.6]} 32. Ke3 {[%clk 0:00:51.6]} 32... Ke6 {[%clk
0:00:52.1]} 33. Kd4 {[%clk 0:00:51.5]} 33... Bf5 {[%clk 0:00:48]} 34. c3 {[%clk
0:00:47.7]} 34... Kd6 {[%clk 0:00:47.3]} 35. b4 {[%clk 0:00:45]} 35... b6 {[%clk
0:00:46.6]} 36. Kc4 {[%clk 0:00:35.5]} 36... Be6+ {[%clk 0:00:45.2]} 37. Kd4
{[%clk 0:00:35.3]} 37... Bf5 {[%clk 0:00:32]} 38. a3 {[%clk 0:00:33.2]} 38... a6
{[%clk 0:00:30.6]} 39. Kc4 {[%clk 0:00:33.3]} 39... Bg4 {[%clk 0:00:23.6]} 40.
Kd4 {[%clk 0:00:33.1]} 40... Ke6 {[%clk 0:00:21.6]} 41. Ke4 {[%clk 0:00:31.8]}
41... Bf5+ {[%clk 0:00:20.7]} 42. Kd4 {[%clk 0:00:31.6]} 42... Kd6 {[%clk
0:00:20.8]} 43. Kc4 {[%clk 0:00:30.7]} 43... Be6+ {[%clk 0:00:19.8]} 44. Kd4
{[%clk 0:00:30.7]} 44... Bh3 {[%clk 0:00:19.9]} 45. Ke4 {[%clk 0:00:29.9]} 45...
Bg4 {[%clk 0:00:18.9]} 46. f5 {[%clk 0:00:28.6]} 46... Bh5 {[%clk 0:00:17.2]}
47. Kf4 {[%clk 0:00:25.6]} 47... Ke7 {[%clk 0:00:11.9]} 48. g4 {[%clk
0:00:25.2]} 48... Bf7 {[%clk 0:00:12]} 49. Ke5 {[%clk 0:00:24.7]} 49... Bc4
{[%clk 0:00:11.4]} 50. g5 {[%clk 0:00:24.5]} 50... a5 {[%clk 0:00:07.7]} 51. g6
{[%clk 0:00:21.3]} 51... axb4 {[%clk 0:00:06.4]} 52. axb4 {[%clk 0:00:21.5]}
52... b5 {[%clk 0:00:06.2]} 53. f6+ {[%clk 0:00:19.8]} 53... Kf8 {[%clk
0:00:06.1]} 54. Kd6 {[%clk 0:00:19.1]} 54... Bd5 {[%clk 0:00:05]} 55. Kd7 {[%clk
0:00:15.7]} 55... Kg8 {[%clk 0:00:00.7]} 56. Ke7 {[%clk 0:00:14.7]} 1-0